Cogmind - Beta 15 @@@ ROGUE MODE // 2025.09.25 @ 19:15:22 Player: winnking222 Result: Destroyed by S-10 Pest with Light Assault Rifle Performance ------------- Evolutions (0) 0 Regions Visited (4) 800 Robots Destroyed (36) 180 Value Destroyed (718) 718 Prototype IDs (23) 460 Alien Tech Used (0) 0 Bonus (300) 300 TOTAL SCORE: 2458 Bonus ------- Aligned with FarCom 300 Cogmind --------- Core Integrity 0/250 Matter 285/300 Energy 250/250 System Corruption 2% Temperature Cool (1) Movement Treading (160) Location -9/Mines Parts ------- > --- POWER (1) -------- Ion Engine > --- PROPULSION (2) --- Light Treads Improved Treads > --- UTILITY (2) ------ Large Storage Unit Seismic Detector > --- WEAPON (2) ------- Light Assault Rifle Heavy Assault Rifle > --- INVENTORY (15) --- Improved Treads Improved Treads Improved Treads Potential Leg Potential Leg Wheel Medium Matter Pod (100) Cloak of Protection Hardened Medium Armor Plating Reactive Plating Skeleton Box Heavy Assault Rifle Heavy Assault Rifle Heavy Assault Rifle Mini Grenade Launcher Peak State ------------ > --- POWER ------------ Ion Engine > --- PROPULSION ------- Light Treads Improved Treads > --- UTILITY ---------- Large Storage Unit Seismic Detector > --- WEAPON ----------- Light Assault Rifle Heavy Assault Rifle > --- INVENTORY -------- Improved Treads Improved Treads Improved Treads Potential Leg Potential Leg Wheel Salvage Targeting Computer Cloak of Protection Hardened Medium Armor Plating Reactive Plating Skeleton Box Heavy Assault Rifle Heavy Assault Rifle Heavy Assault Rifle Mini Grenade Launcher [Rating: 14] Favorites ----------- Power Light Ion Engine Engine Light Ion Engine Propulsion Light Treads Treads Light Treads Utility Seismic Detector Device Seismic Detector Storage Large Storage Unit Weapon Light Assault Rifle Ballistic Gun Light Assault Rifle Launcher Grenade Launcher Build | -11 -10 -10 -10 -9 ------- Run | Yrd Mat Min Exi Min Slots Evolved . | . . . . . Power . | . . . . . Propulsion . | . . . . . Utility . | . . . . . Weapon . | . . . . . Parts Attached 20 | 7 8 3 2 . Power 4 | 1 2 . 1 . Engine 4 | 1 2 . 1 . Core . | . . . . . Reactor . | . . . . . Propulsion 6 | 2 1 2 1 . Treads 6 | 2 1 2 1 . Leg . | . . . . . Wheel . | . . . . . Hover . | . . . . . Flight . | . . . . . Utility 5 | 2 3 . . . Device 2 | 1 1 . . . Storage 3 | 1 2 . . . Processor . | . . . . . Hackware . | . . . . . Protection . | . . . . . Artifact . | . . . . . Weapon 5 | 2 2 1 . . Energy Gun . | . . . . . Energy Cannon . | . . . . . Ballistic Gun 4 | 2 1 1 . . Ballistic Cannon . | . . . . . Launcher 1 | . 1 . . . Special Weapon . | . . . . . Impact Weapon . | . . . . . Slashing Weapon . | . . . . . Piercing Weapon . | . . . . . Special Melee Weapon . | . . . . . Unidentified Prototypes . | . . . . . Parts Lost 1 | . . 1 . . Power 1 | . . 1 . . Propulsion . | . . . . . Utility . | . . . . . Weapon . | . . . . . Highest Loss Streak 1 | . . 1 . . To Critical Strikes . | . . . . . Average Backups 11 | 6 9 15 14 15 Power . | . . 1 . . Propulsion 5 | 3 5 6 5 6 Utility 2 | . 1 2 3 4 Weapon 2 | . 1 5 4 4 Tool/Special . | . . . . . Unused Backups 22 | . 5 1 1 15 Power 1 | . 1 . . . Propulsion 9 | . 3 . . 6 Utility 7 | . 1 1 1 4 Weapon 4 | . . . . 4 Tool/Special 1 | . . . . 1 Average Slot Usage (%) 97 | . 100 95 91 100 Engine 11 | . 14 9 6 14 Treads 28 | . 28 28 28 28 Device 14 | . 14 14 14 14 Storage 14 | . 14 14 14 14 Ballistic Gun 27 | . 26 28 28 28 Peak Build Rating 14 | 7 9 11 14 14 Average Rating 9 | 5 8 9 11 14 On Entrance 8 | . 7 9 10 14 Naked Turns . | . . . . . Heaviest Build 30 | 13 26 28 30 . Greatest Support 43 | 40 40 43 43 . Greatest Overweight (x) 3 | 3 . . . . Average Overweight (x) . | . . . . . Largest Inventory Capacity 15 | 8 15 15 15 15 Average Capacity 12 | 7 10 15 15 15 Most Carried 15 | 8 15 15 15 15 Average Carried 11 | 6 9 14 14 15 Final Capacity 15 | 8 15 15 15 15 Final Carried 15 | 8 15 15 15 15 Class Distribution -------------------- 100% | Mutant Dominant Class ---------------- Mutant | -10/Materials Mutant | -10/Mines Mutant | -10/Exiles Mutant | -9/Mines Resources | -11 -10 -10 -10 -9 ----------- Run | Yrd Mat Min Exi Min Matter Collected 844 | 304 365 136 39 . Remotely . | . . . . . Salvage Created 860 | 143 523 194 . . Parts 71 | 13 52 6 . . Haulers Intercepted 2 | . 2 . . . Recyclers Shooed 1 | . 1 . . . Parts Field Recycled . | . . . . . Retrieved Matter . | . . . . . Parts Self-Destructed . | . . . . . Prevented . | . . . . . Kills | -11 -10 -10 -10 -9 ------- Run | Yrd Mat Min Exi Min Combat Hostiles Destroyed 26 | . 18 8 . . Guns 14 | . 6 8 . . AOE 12 | . 12 . . . Classes Destroyed 10 | 2 6 2 . . Builder 2 | . 2 . . . Tunneler 4 | 4 . . . . Hauler 2 | . 2 . . . Recycler 2 | 1 1 . . . Operator 1 | . 1 . . . Watcher 3 | . 3 . . . Swarmer 9 | . 9 . . . Grunt 12 | . 9 3 . . Demolisher 1 | . . 1 . . Assembled 4 | . . 4 . . Best Kill Streak 9 | 1 9 2 . . Combat Bots Only 3 | . 3 2 . . Max Kills in Single Turn 3 | 1 3 1 . . Gunslinging . | . . . . . Exploded 3 | . 3 . . . Melee . | . . . . . Uniques/NPCs Destroyed . | . . . . . Combat | -11 -10 -10 -10 -9 -------- Run | Yrd Mat Min Exi Min Hostile Shots Fired 112 | . 55 50 . 7 Missed 28 | . 12 12 . 4 Hits 84 | . 43 38 . 3 Projectile 84 | . 43 38 . 3 AOE 2 | . . 2 . . Critical Strikes 1 | . 1 . . . Damage Taken 1071 | . 454 595 . 22 Core 251 | . 57 178 . 16 Absorbed by Shields . | . . . . . Core Remaining (%) 100 | 100 . . . . Volleys Fired 97 | 17 50 28 . 2 Largest 2 | 2 2 2 . 2 Hottest 50 | 40 50 43 . 43 Shots Fired 194 | 34 99 57 . 4 Gun 181 | 34 86 57 . 4 Cannon . | . . . . . Launcher 13 | . 13 . . . Special . | . . . . . Kinetic 181 | 34 86 57 . 4 Thermal . | . . . . . Explosive 13 | . 13 . . . Electromagnetic . | . . . . . Robot Hit Streak 9 | 6 9 7 . 1 Robot Miss Streak 3 | 2 3 3 . 2 Penetration Max . | . . . . . Secondary Targets . | . . . . . Shots Hit Robots 106 | 24 50 31 . 1 Core Hits 74 | 10 45 19 . . Critical Kills 1 | . . 1 . . Critical Parts Destroyed . | . . . . . Critical Strikes 1 | . . 1 . . Destroy 1 | . . 1 . . Melee Attacks . | . . . . . Impact . | . . . . . Slashing . | . . . . . Piercing . | . . . . . Sneak Attacks . | . . . . . Combat Hostiles . | . . . . . Follow-up Attacks . | . . . . . Damage Inflicted 1852 | 203 1292 337 . 20 Guns 954 | 203 400 331 . 20 Cannons . | . . . . . Explosions 879 | . 879 . . . Melee . | . . . . . Ramming 19 | . 13 6 . . Kinetic 954 | 203 400 331 . 20 Thermal . | . . . . . Explosive 879 | . 879 . . . Electromagnetic . | . . . . . Impact . | . . . . . Slashing . | . . . . . Piercing . | . . . . . Highest Corruption 2 | . 2 2 2 2 Average Corruption 2 | . 2 2 2 2 Corruption Purged . | . . . . . Corruption Blocked . | . . . . . Effects 35 | . 8 15 12 . Message Errors 9 | . . 4 5 . Matter Fused 7 | . 1 3 3 . Heat Flow Errors 6 | . 4 1 1 . Energy Discharges 4 | . 1 2 1 . Data Loss (minor) 6 | . 2 3 1 . Data Loss (major) 2 | . . 1 1 . Misfires 1 | . . 1 . . Overload Shots . | . . . . . Overflow Damage 10 | . 10 . . . Projectiles . | . . . . . Explosions 10 | . 10 . . . Melee . | . . . . . Knockbacks . | . . . . . Impact . | . . . . . Kinetic . | . . . . . Secondary . | . . . . . Self-Inflicted Damage 9 | . 9 . . . Shots 1 | . 1 . . . Rammed 6 | . 2 4 . . Targets Rammed 7 | . 3 4 . . Kicked . | . . . . . Crushed 1 | . 1 . . . Highest Temperature 234 | . 160 95 234 2 Average Temperature 34 | . 32 11 122 1 Received Heat Transfer 324 | . 201 123 . . Siege Activations . | . . . . . Martial Activations . | . . . . . Shielding Activations . | . . . . . Robots Disrupted . | . . . . . Combat Hostiles . | . . . . . Robots Corrupted . | . . . . . Combat Hostiles . | . . . . . Parts Fried . | . . . . . Impact Corruptions . | . . . . . Robots Melted . | . . . . . Combat Hostiles . | . . . . . Parts Melted . | . . . . . Heat Transferred . | . . . . . Parts Sabotaged . | . . . . . Parts Stolen . | . . . . . Parts Stripped . | . . . . . Power Chain Reactions . | . . . . . Alert | -11 -10 -10 -10 -9 ------- Run | Yrd Mat Min Exi Min Maximum Alert Level 1 | . 1 . . . Low Security (%) 79 | 100 65 100 . 100 Level 1 20 | . 34 . . . Level 2 . | . . . . . Level 3 . | . . . . . Level 4 . | . . . . . Level 5 . | . . . . . High Security . | . . . . . Max Security . | . . . . . Peak Influence 296 | 5 296 83 . . Initial 83 | . . 83 . . Average 80 | 1 128 14 . . Influence Increases 782 | 25 647 110 . . Destroy 0b10 Robot/C 440 | . 360 80 . . Destroy 0b10 Robot/NC 70 | 25 45 . . . Destroy Leader 110 | . 80 30 . . Successful Hack 18 | . 18 . . . Disable Machine 15 | . 15 . . . Destroy Structure 69 | . 69 . . . Lose Combat Pursuer 60 | . 60 . . . Influence Decreases 782 | 25 432 325 . . Entered New Map 132 | . . 132 . . Time Decay 650 | 25 432 193 . . Squads Dispatched 3 | . 3 . . . Investigation 1 | . 1 . . . Extermination . | . . . . . Reinforcement 2 | . 2 . . . Assault . | . . . . . Garrison . | . . . . . Intercept . | . . . . . Searches Triggered . | . . . . . Construction Impeded . | . . . . . Haulers Reinforced . | . . . . . Active Scanning Responses . | . . . . . Cargo Convoy Interrupts . | . . . . . Stealth | -11 -10 -10 -10 -9 --------- Run | Yrd Mat Min Exi Min Distress Signals 4 | . 3 1 . . Communications Jammed . | . . . . . Distress Signals . | . . . . . Times Spotted 58 | . 32 23 . 3 Peak Tracking Total 17 | . 4 17 . 3 Tactical Retreats 4 | . 3 1 . . Traps | -11 -10 -10 -10 -9 ------- Run | Yrd Mat Min Exi Min Traps Triggered 2 | . 2 . . . Indirectly . | . . . . . Trap Hack Attempts . | . . . . . Triggered . | . . . . . Disarmed . | . . . . . Reprogrammed . | . . . . . Reused . | . . . . . Traps Extracted . | . . . . . Installed . | . . . . . Triggered . | . . . . . Machines | -11 -10 -10 -10 -9 ---------- Run | Yrd Mat Min Exi Min Machines Disabled 1 | . 1 . . . Max in Single Turn 1 | . 1 . . . Machines Repaired . | . . . . . Machines Dismantled . | . . . . . Machines Sabotaged . | . . . . . Overloaded Fab Kills . | . . . . . Hacking | -11 -10 -10 -10 -9 --------- Run | Yrd Mat Min Exi Min Machines Accessed 10 | . 7 1 2 . Terminals 7 | . 7 . . . Fabricators . | . . . . . Repair Stations . | . . . . . Recycling Units . | . . . . . Scanalyzers . | . . . . . Garrison Access . | . . . . . Total Hacks 20 | . 14 1 5 . Successful 11 | . 5 1 5 . Failed 9 | . 9 . . . Catastrophic 1 | . 1 . . . Database Lockouts . | . . . . . Manual 15 | . 14 . 1 . Terminals 14 | . 14 . . . Fabricators . | . . . . . Repair Stations . | . . . . . Recycling Units . | . . . . . Scanalyzers . | . . . . . Garrison Access . | . . . . . Terminal Hacks 6 | . . 1 5 . Record 4 | . . . 4 . Open Door 1 | . . 1 . . Proto ID Catalog 1 | . . . 1 . Fabricator Hacks . | . . . . . Repair Station Hacks . | . . . . . Recycling Unit Hacks . | . . . . . Scanalyzer . | . . . . . Garrison Access Hacks . | . . . . . Unauthorized Hacks 5 | . 5 . . . Terminals 5 | . 5 . . . Skim 5 | . 5 . . . Fabricators . | . . . . . Repair Stations . | . . . . . Recycling Units . | . . . . . Scanalyzers . | . . . . . Garrison Access . | . . . . . Data Cores Recovered . | . . . . . Used . | . . . . . Hacking Detections 4 | . 4 . . . Full Trace Events 1 | . 1 . . . Feedback Events . | . . . . . Feedback Blocked . | . . . . . Robot Schematics Acquired . | . . . . . Robots Built . | . . . . . Authchips . | . . . . . Time . | . . . . . Total Robot Build Rating . | . . . . . Part Schematics Acquired . | . . . . . Parts Built . | . . . . . Authchips . | . . . . . Time . | . . . . . Total Part Build Rating . | . . . . . Parts Repaired . | . . . . . Time . | . . . . . Parts Recycled . | . . . . . Recycled Matter . | . . . . . Retrieved Matter . | . . . . . Retrieved Components . | . . . . . Parts Scanalyzed . | . . . . . Part Schematics Acquired . | . . . . . Parts Damaged . | . . . . . Bothacking | -11 -10 -10 -10 -9 ------------ Run | Yrd Mat Min Exi Min Used RIF Installer . | . . . . . Robots Hacked . | . . . . . Non-combat . | . . . . . Combat . | . . . . . Robot Hacks Applied . | . . . . . Relay Couplers Released . | . . . . . Fabnet Peak Effective % . | . . . . . Robots Rewired . | . . . . . Allies Hacked . | . . . . . Hacks Repelled . | . . . . . Allies | -11 -10 -10 -10 -9 -------- Run | Yrd Mat Min Exi Min Total Allies 3 | . . 3 . . Largest Group 3 | . . 3 . . Highest-Rated Group 40 | . . 40 . . Highest-Rated Ally 16 | . . 16 . . Total Orders . | . . . . . Ally Attacks 10 | . . 10 . . Total Damage 128 | . . 128 . . Kills . | . . . . . Allies Corrupted . | . . . . . Allies Melted . | . . . . . Intel | -11 -10 -10 -10 -9 ------- Run | Yrd Mat Min Exi Min Active Infowar (turns) 3256 | 91 1618 917 626 4 Seismic 3256 | 91 1618 917 626 4 Robot Analysis Total . | . . . . . Derelict Logs Recovered 2 | . . 2 . . Drone Launches . | . . . . . Drone Recoveries . | . . . . . Exploration | -11 -10 -10 -10 -9 ------------- Run | Yrd Mat Min Exi Min Turns Passed 3382 | 217 1618 917 626 4 Spaces Moved 1824 | 107 856 475 386 . Core 19 | 19 . . . . Treads 1805 | 88 856 475 386 . Legs . | . . . . . Wheels . | . . . . . Hover . | . . . . . Flight . | . . . . . Fastest Speed 50 | 50 160 160 160 . Average Speed 159 | 143 160 160 160 . Slowest Speed 200 | 200 160 160 160 . Overloaded Moves . | . . . . . Propulsion Burnouts . | . . . . . Robots Hopped . | . . . . . Potential Cave-ins . | . . . . . Cave-ins Triggered . | . . . . . Exploration Rate (%) 52 | 4 97 86 69 4 Regions Visited 4 Branch Regions 3 Pre-discovered Areas 2 | . . 1 1 . Known Exits Taken . | . . . . . Unknown Exits Taken 4 | 1 1 1 1 . Scrap Searched 1 | . . 1 . . Spaces Dug . | . . . . . Terrain Destroyed 70 | . 70 . . . Melee . | . . . . . Projectile . | . . . . . AOE 70 | . 70 . . . Terrain Rammed . | . . . . . Walls Destroyed . | . . . . . Machines Disabled . | . . . . . Actions | -11 -10 -10 -10 -9 --------- Run | Yrd Mat Min Exi Min Total 2145 | 142 1022 583 396 2 Wait 139 | . 73 66 . . Move 1820 | 106 855 474 385 . Hop . | . . . . . Pick Up 34 | 12 14 3 5 . Fast Attach 3 | 3 . . . . Attach 5 | 4 . . 1 . Detach . | . . . . . Swap 20 | . 15 4 1 . Drop 20 | . 12 4 4 . Fire 97 | 17 50 28 . 2 Melee . | . . . . . Ram . | . . . . . Kick . | . . . . . Crush 7 | . 3 4 . . Escape Stasis . | . . . . . Rewire . | . . . . . Trap . | . . . . . Miscellaneous . | . . . . . Route ------- -11/Scrapyard -10/Materials (discovered 5 exits: [*Mat x3] / *Min / [*Sub]) -10/Mines (discovered 2 exits: [*Mat] / *Exi) -10/Exiles -9/Mines History --------- Turn | Location | Event 7 | -11/Scrapyard | Discovered new exit (range 14) 218 | -11/Scrapyard | Entered Materials 328 | -10/Materials | Build established: Mutant 542 | -10/Materials | Discovered new exit (range 9) 715 | -10/Materials | Discovered new exit (range 14) 739 | -10/Materials | Discovered new exit (range 16) 1130 | -10/Materials | Discovered new exit (range 16) 1791 | -10/Materials | Discovered new exit (range 11) 1836 | -10/Materials | Entered Mines 1983 | -10/Mines | Met a Derelict who couldn't figure out how to use a Trap Extractor 2069 | -10/Mines | Assisted by bots powering up and referring to "LRC-V3" 2072 | -10/Mines | Learned location of Zion (-7) 2096 | -10/Mines | Assembled infested the area 2169 | -10/Mines | Core integrity fell below 50% 2196 | -10/Mines | Lost 3 allies 2365 | -10/Mines | Core integrity fell below 20% 2588 | -10/Mines | Learned Materials non-interactive machine intel 2601 | -10/Mines | Discovered new exit (range 5) 2744 | -10/Mines | Deemed a non-threat by the Exiles lab entrance 2744 | -10/Mines | Discovered new exit (range 5) 2753 | -10/Mines | Entered Exiles 2792 | -10/Exiles | Met 8R-AWN 2821 | -10/Exiles | Met EX-HEX 2864 | -10/Exiles | Met EX-BIN 2923 | -10/Exiles | Aligned with FarCom system 2925 | -10/Exiles | Given EX-Vault access code 2961 | -10/Exiles | Opened EX-Vault 2973 | -10/Exiles | Found Skeleton Box 3013 | -10/Exiles | Warned to stay clear of 0b10 Research branches 3095 | -10/Exiles | Found Cloak of Protection 3104 | -10/Exiles | Found Potential Leg 3108 | -10/Exiles | Found Potential Leg 3184 | -10/Exiles | Met EX-DEC 3366 | -10/Exiles | Discovered new exit (range 10) 3379 | -10/Exiles | Stole three prototypes: Potential Leg, Cloak of Protection, Skeleton Box 3379 | -10/Exiles | Entered Mines 3383 | -9/Mines | Destroyed by S-10 Pest with Light Assault Rifle Last Messages --------------- World map confirmed: -7/Zion. >>Record "MSG001873-01*" PINNED - Anyone passing by a Warlord outpost feel free to stop in for assistance. Of course they lose outposts like a wild Derelict loses bolts, but one of the latest major bases seems to be at about -5 or -4, somewhere out beyond the Upper Caves. 03191_ System corrupted: Substantial component data lost. 03207_ System corrupted: Component data lost. 03237_ Extracted 39 matter. 03238_ Dropped Salvage Targeting Computer. 03250_ Acquired Med. Matter Pod. 03252_ System corrupted: Heat flow error (+254). 03279_ YQKU&A#YQU1SCJUO&AG